Cogmind - Beta 15 @@@ ROGUE MODE // 2025.07.26 @ 15:36:31 Player: GiggleBox Result: Destroyed by S-10 Pest with Light Assault Rifle Performance ------------- Evolutions (2) 1000 Regions Visited (3) 600 Robots Destroyed (36) 180 Value Destroyed (1246) 1246 Prototype IDs (0) 0 Alien Tech Used (0) 0 Bonus (0) 0 TOTAL SCORE: 3026 Bonus ------- None Cogmind --------- Core Integrity 0/550 Matter 300/300 Energy 100/100 System Corruption 0% Temperature Cool (0) Movement Core (350) Ox6 Location -8/Materials Parts ------- > --- POWER (1) -------- (None) > --- PROPULSION (4) --- (None) > --- UTILITY (3) ------ Large Storage Unit > --- WEAPON (3) ------- (None) > --- INVENTORY (15) --- Improved Heat Sink Machine Analyzer Seismic Detector Light Armor Plating Insulated Plating Peak State ------------ > --- POWER ------------ Ion Engine > --- PROPULSION ------- Light Treads Light Treads Light Treads Light Treads > --- UTILITY ---------- Improved Heat Sink Large Storage Unit Advanced Targeting Computer > --- WEAPON ----------- EM Shotgun EM Shotgun EM Shotgun > --- INVENTORY -------- Light Ion Engine Light Treads Light Treads Disposable Heat Sink Machine Analyzer Seismic Detector EM Pulse Gun Small Laser Assault Rifle [Rating: 19] Favorites ----------- Power Ion Engine Engine Ion Engine Propulsion Light Treads Treads Light Treads Utility Small Storage Unit Device Seismic Detector Storage Small Storage Unit Processor Advanced Targeting Computer Protection Insulated Plating Weapon EM Shotgun Energy Gun EM Shotgun Ballistic Gun Assault Rifle Build | -11 -10 -10 -8 ------- Run | Yrd Mat Sub Mat Slots Evolved 4 | . . . 4 Power . | . . . . Propulsion 2 | . . . 2 Utility 1 | . . . 1 Weapon 1 | . . . 1 Parts Attached 24 | 9 2 . 13 Power 2 | 2 . . . Engine 2 | 2 . . . Core . | . . . . Reactor . | . . . . Propulsion 6 | 2 . . 4 Treads 6 | 2 . . 4 Leg . | . . . . Wheel . | . . . . Hover . | . . . . Flight . | . . . . Utility 7 | 2 . . 5 Device 3 | 1 . . 2 Storage 2 | 1 . . 1 Processor 1 | . . . 1 Hackware . | . . . . Protection 1 | . . . 1 Artifact . | . . . . Weapon 9 | 3 2 . 4 Energy Gun 8 | 2 2 . 4 Energy Cannon . | . . . . Ballistic Gun 1 | 1 . . . Ballistic Cannon . | . . . . Launcher . | . . . . Special Weapon . | . . . . Impact Weapon . | . . . . Slashing Weapon . | . . . . Piercing Weapon . | . . . . Special Melee Weapon . | . . . . Unidentified Prototypes . | . . . . Parts Lost 19 | . . . 19 Power 2 | . . . 2 Propulsion 6 | . . . 6 Utility 2 | . . . 2 Weapon 9 | . . . 9 Highest Loss Streak 12 | . . . 12 To Critical Strikes . | . . . . Average Backups 6 | 1 5 7 5 Power . | . 1 1 . Propulsion . | . . . . Utility 2 | . . 1 3 Weapon 2 | . 3 5 1 Tool/Special . | . . . . Unused Backups 3 | . . . 3 Power . | . . . . Propulsion . | . . . . Utility 3 | . . . 3 Weapon . | . . . . Tool/Special . | . . . . Average Slot Usage (%) 81 | . 100 100 69 Engine 10 | . 14 14 7 Treads 21 | . 28 28 17 Device 9 | . 14 14 6 Storage 11 | . 14 14 9 Processor 4 | . . . 7 Energy Gun 20 | . 22 28 16 Ballistic Gun 3 | . 5 . 4 Peak Build Rating 19 | 7 10 10 19 Average Rating 11 | 5 8 10 12 On Entrance 6 | . 7 10 10 Naked Turns . | . . . . Heaviest Build 35 | 15 17 17 35 Greatest Support 80 | 40 40 40 80 Greatest Overweight (x) 10 | . . . 10 Average Overweight (x) . | . . . 1 Largest Inventory Capacity 15 | 8 8 8 15 Average Capacity 10 | 7 8 8 13 Most Carried 9 | 2 7 8 9 Average Carried 6 | 1 5 7 5 Final Capacity 15 | 8 8 8 15 Final Carried 8 | 2 7 8 5 Class Distribution -------------------- 64% | Mutant 28% | Gunner 6% | Scavenger-Gunner Dominant Class ---------------- Mutant | -10/Materials Mutant | -10/Subcaves Gunner | -8/Materials Resources | -11 -10 -10 -8 ----------- Run | Yrd Mat Sub Mat Matter Collected 639 | 299 . 20 320 Remotely . | . . . . Salvage Created 1654 | 70 . 132 1452 Parts 83 | 8 . 9 66 Haulers Intercepted 1 | . . . 1 Recyclers Shooed . | . . . . Parts Field Recycled . | . . . . Retrieved Matter . | . . . . Parts Self-Destructed 2 | . . 2 . Prevented 4 | . . 4 . Kills | -11 -10 -10 -8 ------- Run | Yrd Mat Sub Mat Combat Hostiles Destroyed 25 | . . 3 22 Guns 22 | . . 3 19 Classes Destroyed 11 | 2 . 2 7 Worker 4 | . . . 4 Builder 1 | . . . 1 Tunneler 1 | 1 . . . Hauler 1 | . . . 1 Recycler 2 | 1 . . 1 Watcher 2 | . . . 2 Grunt 19 | . . 2 17 Duelist 1 | . . . 1 Sentry 3 | . . . 3 Hunter 1 | . . . 1 Subdweller 1 | . . 1 . Best Kill Streak 11 | 1 . 2 11 Combat Bots Only 11 | . . 2 11 Max Kills in Single Turn 3 | 1 . 1 3 Gunslinging . | . . . . Exploded . | . . . . Melee . | . . . . Uniques/NPCs Destroyed . | . . . . Combat | -11 -10 -10 -8 -------- Run | Yrd Mat Sub Mat Hostile Shots Fired 247 | . . 10 237 Missed 67 | . . 2 65 Hits 180 | . . 8 172 Projectile 180 | . . 8 172 Critical Strikes 5 | . . . 5 Damage Taken 2434 | . . 137 2297 Core 574 | . . 15 559 Absorbed by Shields . | . . . . Core Remaining (%) 97 | 100 . 94 . Volleys Fired 88 | 3 4 8 73 Largest 3 | 2 2 2 3 Hottest 141 | 60 90 90 141 Shots Fired 220 | 6 8 16 190 Gun 220 | 6 8 16 190 Cannon . | . . . . Launcher . | . . . . Special . | . . . . Kinetic 53 | 3 . . 50 Thermal 66 | . . . 66 Explosive . | . . . . Electromagnetic 101 | 3 8 16 74 Robot Hit Streak 25 | 2 2 10 25 Robot Miss Streak 4 | 1 2 2 4 Penetration Max . | . . . . Secondary Targets 4 | . . . 4 Max Gunslinging Chain 1 | . . . 1 Shots Hit Robots 170 | 3 3 14 150 Core Hits 94 | 3 1 6 84 Critical Kills 2 | . . . 2 Critical Parts Destroyed . | . . . . Critical Strikes 6 | . . . 6 Burn 4 | . . . 4 Destroy 2 | . . . 2 Melee Attacks . | . . . . Impact . | . . . . Slashing . | . . . . Piercing . | . . . . Sneak Attacks . | . . . . Combat Hostiles . | . . . . Follow-up Attacks . | . . . . Damage Inflicted 2519 | 40 34 178 2267 Guns 2436 | 40 34 178 2184 Cannons . | . . . . Explosions 80 | . . . 80 Melee . | . . . . Ramming 3 | . . . 3 Kinetic 539 | 28 . . 511 Thermal 723 | . . . 723 Explosive . | . . . . Electromagnetic 1254 | 12 34 178 1030 Impact . | . . . . Slashing . | . . . . Piercing . | . . . . Highest Corruption . | . . . . Average Corruption . | . . . . Corruption Purged . | . . . . Corruption Blocked . | . . . . Overload Shots . | . . . . Overflow Damage 23 | . . . 23 Projectiles . | . . . . Explosions 23 | . . . 23 Melee . | . . . . Knockbacks . | . . . . Impact . | . . . . Kinetic . | . . . . Secondary . | . . . . Self-Inflicted Damage 40 | . . . 40 Shots 1 | . . . 1 Rammed 3 | . . . 3 Targets Rammed 3 | . . . 3 Kicked . | . . . . Crushed . | . . . . Highest Temperature 378 | . 60 . 378 Average Temperature 79 | . 24 . 84 Received Heat Transfer 1071 | . . 54 1017 Effects 1 | . . . 1 Energy Bleed 1 | . . . 1 Siege Activations . | . . . . Martial Activations . | . . . . Shielding Activations . | . . . . Robots Disrupted . | . . . . Combat Hostiles . | . . . . Robots Corrupted 1 | . . . 1 Combat Hostiles 1 | . . . 1 Parts Fried 5 | . . . 5 Impact Corruptions . | . . . . Robots Melted 2 | . . . 2 Combat Hostiles 2 | . . . 2 Parts Melted 4 | . . . 4 Heat Transferred 1933 | . . . 1933 Parts Sabotaged . | . . . . Parts Stolen . | . . . . Parts Stripped . | . . . . Power Chain Reactions 1 | . . . 1 Alert | -11 -10 -10 -8 ------- Run | Yrd Mat Sub Mat Maximum Alert Level 1 | . . . 1 Low Security (%) 52 | 100 100 . 40 Level 1 47 | . . . 59 Level 2 . | . . . . Level 3 . | . . . . Level 4 . | . . . . Level 5 . | . . . . High Security . | . . . . Max Security . | . . . . Peak Influence 373 | 5 . . 373 Initial . | . . . . Average 164 | . . . 206 Influence Increases 833 | 10 . 50 773 Destroy 0b10 Robot/C 480 | . . 40 440 Destroy 0b10 Robot/NC 55 | 10 . . 45 Destroy Leader 126 | . . 10 116 Destroy Structure 7 | . . . 7 Lose Combat Pursuer 165 | . . . 165 Influence Decreases 525 | 10 . 50 465 Time Decay 335 | 10 . 50 275 Lost Part 190 | . . . 190 Squads Dispatched 4 | . 1 . 3 Investigation . | . . . . Extermination . | . . . . Reinforcement 4 | . 1 . 3 Assault . | . . . . Garrison . | . . . . Intercept . | . . . . Searches Triggered . | . . . . Construction Impeded . | . . . . Haulers Reinforced . | . . . . Active Scanning Responses . | . . . . Cargo Convoy Interrupts . | . . . . Stealth | -11 -10 -10 -8 --------- Run | Yrd Mat Sub Mat Distress Signals . | . . . . Communications Jammed . | . . . . Distress Signals . | . . . . Times Spotted 44 | . 2 3 39 Peak Tracking Total 9 | . 3 2 9 Tactical Retreats 6 | . . . 6 Traps | -11 -10 -10 -8 ------- Run | Yrd Mat Sub Mat Traps Triggered . | . . . . Indirectly . | . . . . Trap Hack Attempts . | . . . . Triggered . | . . . . Disarmed . | . . . . Reprogrammed . | . . . . Reused . | . . . . Traps Extracted . | . . . . Installed . | . . . . Triggered . | . . . . Machines | -11 -10 -10 -8 ---------- Run | Yrd Mat Sub Mat Machines Disabled . | . . . . Max in Single Turn . | . . . . Machines Repaired . | . . . . Machines Dismantled . | . . . . Machines Sabotaged . | . . . . Overloaded Fab Kills . | . . . . Hacking | -11 -10 -10 -8 --------- Run | Yrd Mat Sub Mat Machines Accessed 1 | . . . 1 Terminals . | . . . . Fabricators . | . . . . Repair Stations . | . . . . Recycling Units 1 | . . . 1 Scanalyzers . | . . . . Garrison Access . | . . . . Total Hacks 3 | . . . 3 Successful 1 | . . . 1 Failed 2 | . . . 2 Catastrophic . | . . . . Database Lockouts . | . . . . Manual . | . . . . Terminals . | . . . . Fabricators . | . . . . Repair Stations . | . . . . Recycling Units 3 | . . . 3 Scanalyzers . | . . . . Garrison Access . | . . . . Terminal Hacks . | . . . . Fabricator Hacks . | . . . . Repair Station Hacks . | . . . . Recycling Unit Hacks 1 | . . . 1 Retrieve Components 1 | . . . 1 Scanalyzer . | . . . . Garrison Access Hacks . | . . . . Unauthorized Hacks . | . . . . Terminals . | . . . . Fabricators . | . . . . Repair Stations . | . . . . Recycling Units . | . . . . Scanalyzers . | . . . . Garrison Access . | . . . . Data Cores Recovered . | . . . . Used . | . . . . Hacking Detections 1 | . . . 1 Full Trace Events . | . . . . Feedback Events . | . . . . Feedback Blocked . | . . . . Robot Schematics Acquired . | . . . . Robots Built . | . . . . Authchips . | . . . . Time . | . . . . Total Robot Build Rating . | . . . . Part Schematics Acquired . | . . . . Parts Built . | . . . . Authchips . | . . . . Time . | . . . . Total Part Build Rating . | . . . . Parts Repaired . | . . . . Time . | . . . . Parts Recycled . | . . . . Recycled Matter . | . . . . Retrieved Matter . | . . . . Retrieved Components 9 | . . . 9 Parts Scanalyzed . | . . . . Part Schematics Acquired . | . . . . Parts Damaged . | . . . . Bothacking | -11 -10 -10 -8 ------------ Run | Yrd Mat Sub Mat Used RIF Installer . | . . . . Robots Hacked . | . . . . Non-combat . | . . . . Combat . | . . . . Robot Hacks Applied . | . . . . Relay Couplers Released . | . . . . Fabnet Peak Effective % . | . . . . Robots Rewired . | . . . . Allies Hacked . | . . . . Hacks Repelled . | . . . . Allies | -11 -10 -10 -8 -------- Run | Yrd Mat Sub Mat Total Allies . | . . . . Largest Group . | . . . . Highest-Rated Group . | . . . . Highest-Rated Ally . | . . . . Total Orders . | . . . . Ally Attacks . | . . . . Total Damage . | . . . . Kills . | . . . . Allies Corrupted . | . . . . Allies Melted . | . . . . Intel | -11 -10 -10 -8 ------- Run | Yrd Mat Sub Mat Active Infowar (turns) 600 | 19 92 379 110 Seismic 600 | 19 92 379 110 Robot Analysis Total . | . . . . Derelict Logs Recovered 1 | . . 1 . Drone Launches . | . . . . Drone Recoveries . | . . . . Exploration | -11 -10 -10 -8 ------------- Run | Yrd Mat Sub Mat Turns Passed 1277 | 90 92 379 716 Spaces Moved 487 | 41 46 222 178 Core 25 | 1 . . 24 Treads 462 | 40 46 222 154 Legs . | . . . . Wheels . | . . . . Hover . | . . . . Flight . | . . . . Fastest Speed 50 | 50 160 160 160 Average Speed 182 | 157 160 160 223 Slowest Speed 550 | 160 160 160 550 Overloaded Moves . | . . . . Propulsion Burnouts . | . . . . Robots Hopped . | . . . . Potential Cave-ins . | . . . . Cave-ins Triggered . | . . . . Exploration Rate (%) 13 | 4 14 17 20 Regions Visited 3 Branch Regions 1 Pre-discovered Areas 2 | . . 2 . Known Exits Taken . | . . . . Unknown Exits Taken 3 | 1 1 1 . Scrap Searched . | . . . . Spaces Dug . | . . . . Terrain Destroyed 7 | . . . 7 Melee . | . . . . Projectile . | . . . . AOE 7 | . . . 7 Terrain Rammed . | . . . . Walls Destroyed . | . . . . Machines Disabled . | . . . . Actions | -11 -10 -10 -8 --------- Run | Yrd Mat Sub Mat Total 672 | 56 56 230 330 Wait 51 | 2 . . 49 Move 484 | 40 45 221 178 Hop . | . . . . Pick Up 14 | 2 5 1 6 Fast Attach 12 | 7 . . 5 Attach 10 | . . . 10 Detach 1 | . . . 1 Swap 8 | 2 2 . 4 Drop 1 | . . . 1 Fire 88 | 3 4 8 73 Melee . | . . . . Ram 2 | . . . 2 Kick . | . . . . Crush 1 | . . . 1 Escape Stasis . | . . . . Rewire . | . . . . Trap . | . . . . Miscellaneous . | . . . . Route ------- -11/Scrapyard -10/Materials -10/Subcaves -8/Materials History --------- Turn | Location | Event 25 | -11/Scrapyard | Discovered new exit (range 15) 91 | -11/Scrapyard | Entered Materials 172 | -10/Materials | Discovered new exit (range 8) 183 | -10/Materials | Entered Subcaves 184 | -10/Subcaves | Approached by a straggling Scientist 280 | -10/Subcaves | Learned location of Zion (-7) 280 | -10/Subcaves | Met a Zionite searching for "candidates" 300 | -10/Subcaves | Build established: Mutant 372 | -10/Subcaves | Learned location of Storage (-8) 376 | -10/Subcaves | Shifting Twisted Machinery released Barrage Gun 392 | -10/Subcaves | Shifting Twisted Machinery released Sub. Beam Cannon 546 | -10/Subcaves | Discovered new exit (range 3) 562 | -10/Subcaves | Entered Materials 562 | -8/Materials | Evolved 4 slots: Propulsion x2, Utility x1, Weapon x1 964 | -8/Materials | Destroyed 11 combat bots 974 | -8/Materials | Lost 12 parts (1p5n1u5w) 1245 | -8/Materials | Core integrity fell below 50% 1263 | -8/Materials | Core integrity fell below 20% 1278 | -8/Materials | Destroyed by S-10 Pest with Light Assault Rifle Last Messages --------------- 01171_ Aluminum Leg melted. 01171_ Lgt. Nuclear Core melted. 01171_ Particle Gun melted. 01173_ W-25 Informer suffers critical hit (Burn). 01173_ W-25 Informer destroyed. 01177_ Acquired 18 matter. 01182_ Slammed into A-02 Transporter. 01183_ Extracted 14 matter. 01190_ K-01 Serf collects debris. 01222_ G-47 Trooper suffers critical hit (Burn). 01222_ Assault Rifle destroyed. 01223_ K-01 Serf collects debris. 01225_ Particle Gun destroyed. 01227_ K-01 Serf collects debris. 01231_ Beam Rifle destroyed. 01232_ K-01 Serf collects debris. 01243_ K-01 Serf destroyed. 01256_ Adv. Targeting Computer destroyed. 01263_ R-06 Scavenger collects Visual Processing Unit. 01266_ R-06 Scavenger collects Lgt. Deuterium Engine. Map ----- +----------------------------------------------------+ | !! !%""" #????????? ????????????????????? | | !! /!%""" ##????????##+##########???????????? | | !! /! """ =########## %#! %% #???????????? | | ]]%%=%=!*% * %/["Y"=% #???????????? | | !*=[[=!%########## # """%%!#???????????? | | ###+####### =*#????????##=##%!!= #???????????? | | #### ] ## [#??????? #%##########???????????? | | ???# ## #????? #=# ???????????????????? | | ???# """ !## #???? #!###??????????????????? | | ???# """ ## #?? #%#????????????????????? | | ???# """ ## +? #[#????????????????????? | | ???# ## # ?#%#????????????????????? | | ???# """ ## # ?# #????????????????????? | | ???# ""???## # ?# #????????????????????? | | ???# "????? ########?## ##???????????????????? | | ???# ?????### #?# [ # ##+#/##?????????????? | | ???# ???????# #????? + ??????? | | ???####???????? #?#""" #%*%##### #????????? | | ??????????????? #?#""" ?## ##???????????????????? | | ??????????????? #??""" ???#!#????????????????????? | | ??????????????? ??? ?????#%#????????????????????? | | ??????????????? ??##??????#a#????????????????????? | | ??????????????? ?###????###g###??????????????????? | | ??????????????? ?# ??# *===#??????????????????? | | ?????????????????# # *%= #########??????????? | | ?????????????????# /@ % o g ??????? | | ?????????????????# # ! ##+####????????????? | | ?????????????????# ??# = #??????????????????? | | ?????????????????# ????## =%##??????????????????? | | ?????????????????#???????# !#???????????????????? | | ?????????????????????????#s #???????????????????? | | ?????????????????????????# s #???????????????????? | | ?????????????????????????# s #???????????????????? | | ?????????????????????????# #???????????????????? | | ?????????????????????????# #???????????????????? | | ????????????????????????? ???????????????????? | | ????????????????????????? ???????????????????? | | ????????????????????????? ??????????????????? | | ???????????????????????? " ??????????????????? | | ???????????????????????? ??????????????????? | | ???????????????????????? ? ??????????????????? | | ????????????????????????? ? ???????????????????? | | ?????????????????????????????????????????????????? | | ?????????????????????????????????????????????????? | | ?????????????????????????????????????????????????? | | ?????????????????????????????????????????????????? | | ?????????????????????????????????????????????????? | | ?????????????????????????????????????????????????? | | ?????????????????????????????????????????????????? | | ?????????????????????????????????????????????????? | +----------------------------------------------------+ Best States ------------- Heat Dissipation 45 Coolant Potential 50 Energy Generation 10 Energy Capacity 250 Matter Stores 300 Matter Capacity 300 Sight Range 16 Terrain Scan Density 10 Armor Coverage 150 Resistance: EM 15 Evasion (%) 40 Targeting Accuracy 8 Recoil Reduction 4 Item Schematics ----------------- None Robot Schematics ------------------ None Fabricated ------------ Nothing Repaired ---------- Nothing Alien Tech Used ----------------- None Achievements -------------- None Challenges ------------ None Game ------ Seed ElectrostormUltimateAirjet Manual? 0 Play Time 00:13:43 Cumulative 144.3 hours Start 2025.07.26 @ 15:27:29 End 2025.07.26 @ 15:36:31 Sessions 1 Manual Loads 0 Difficulty Rogue Special Mode None Game No. 137 Rogue 137 Adventurer 0 Explorer 0 Win Type - Total 1 Types 1/0/0/0/0/0/0/0/0/0 Lore% 69 Gallery% 62 Achievement% 54 Wizard Run 0 Options --------- Layout 0 ASCII 0 Keyboard 1 Movement Numpad Keybinds 0 Fullscreen 1 Font 24/Terminus Map View 76x50 Zoom Use 0% Tactical HUD 1 Map Filters NONE Filters NONE Steam 1 RUN: 5b11ff07-4902-4d06-981d-e2d1a29a0894